bitfinex/quotes_ETHUSD_20251124
["timestamp","ask_amount","ask_price","bid_price","bid_amount"]
[1763978709584,0.0004,2809.0,2808.9,0.9474]
[1763978711350,0.0004,2809.0,2808.9,1.0474]
[1763978711570,0.0004,2809.0,2808.9,2.50586285]
[1763978711756,0.0004,2809.0,2808.9,1.59887021]
[1763978712287,0.0004,2809.0,2808.9,2.50586285]
[1763978712781,0.0004,2809.0,2808.9,1.59887021]
[1763978713646,0.0004,2809.0,2808.9,1.0474]
[1763978714584,0.0004,2809.0,2808.9,1.2734]
[1763978717085,0.0004,2809.0,2808.9,4.83351249]
[1763978717285,0.0004,2809.0,2808.9,1.2734]
[1763978718297,0.0004,2809.0,2808.9,0.4956]
[1763978718465,0.0004,2809.0,2808.6,0.4518]
[1763978719061,0.0004,2809.0,2808.9,0.4956]
[1763978719594,0.55851366,2810.8,2810.2,0.4956]
[1763978719796,0.55851366,2810.8,2809.7,0.1979]
[1763978719797,0.69021366,2810.8,2810.0,0.1]
[1763978720009,0.69021366,2810.8,2809.7,1.4097863]
[1763978720010,0.1317,2810.8,2810.2,0.227]
[1763978720372,0.4395,2811.3,2810.3,0.5518]
[1763978720760,0.3587,2811.8,2810.3,0.5518]
[1763978720761,0.4395,2811.6,2810.3,0.5518]
[1763978720992,0.1317,2811.8,2810.5,0.1]
[1763978721265,0.0445,2812.2,2810.6,7.56200772]
[1763978721567,0.0445,2812.2,2810.8,0.1]
[1763978721568,0.1317,2811.9,2810.8,0.1]
[1763978721775,0.1317,2811.9,2810.7,0.6788]
[1763978721955,0.5712,2811.9,2810.7,0.6788]
[1763978722158,0.5712,2811.9,2810.8,0.4518]
[1763978722459,0.5712,2811.9,2810.8,0.97616112]
[1763978722659,0.48262047,2811.8,2810.7,0.227]
[1763978722918,0.48262047,2811.8,2810.7,0.4518]
[1763978723075,0.405504,2811.7,2810.5,0.327]
[1763978723275,0.405504,2811.7,2810.6,0.4518]
[1763978723511,0.4395,2811.7,2810.6,0.4518]
[1763978724408,0.4395,2811.7,2810.6,0.5518]
[1763978724974,0.4395,2811.7,2810.7,0.1]
[1763978725162,0.1317,2811.9,2810.8,0.1]
[1763978725363,0.405504,2811.8,2810.8,0.1]
[1763978725663,0.1317,2811.9,2811.0,0.1]
[1763978725862,0.1317,2811.9,2811.1,0.6497]
[1763978726400,0.1317,2811.9,2811.1,0.1979]
[1763978726867,0.1317,2811.9,2811.2,0.4518]
[1763978727588,0.3792,2811.9,2811.1,0.1979]
[1763978727796,0.04312047,2811.8,2810.6,0.327]
[1763978728098,0.29062047,2811.8,2810.6,0.227]
[1763978728399,0.1317,2811.9,2810.8,0.1]
[1763978728559,0.1317,2811.9,2810.7,0.4518]
[1763978728765,0.1317,2811.9,2811.0,0.1]
[1763978729177,0.1317,2811.9,2811.1,0.6497]
[1763978729361,0.1337,2811.9,2811.1,0.6497]
[1763978729590,0.1337,2811.9,2811.1,0.1979]
[1763978729787,0.1337,2811.9,2811.2,0.4518]
[1763978730563,0.04312047,2811.8,2811.1,0.1979]
[1763978730979,0.2475,2811.2,2810.5,0.2475]
[1763978731179,0.405504,2811.5,2810.2,0.4518]
[1763978731380,0.44862447,2811.5,2810.0,0.1]
[1763978731583,0.405504,2811.3,2810.2,0.4518]
[1763978731794,0.04312047,2811.2,2810.2,0.4518]
[1763978731997,0.29062047,2811.2,2810.2,0.4518]
[1763978732198,0.29062047,2811.2,2809.9,0.1989]
[1763978732199,0.405504,2811.1,2809.9,0.1989]
[1763978732402,0.04312047,2811.0,2809.9,0.1989]
[1763978732609,0.29062047,2811.0,2809.9,0.1989]
[1763978732810,0.405504,2810.9,2809.9,0.1989]
[1763978733405,0.405504,2810.7,2809.9,0.001]
[1763978733820,0.04312047,2811.2,2809.9,0.001]
[1763978733821,0.2895,2810.6,2809.9,0.001]
[1763978734018,0.405504,2810.5,2809.9,0.001]
[1763978735805,0.405504,2810.9,2809.9,0.001]
[1763978736207,0.405504,2810.7,2809.9,0.001]
[1763978736812,0.2895,2810.7,2809.9,0.001]
[1763978739018,0.2895,2810.7,2809.9,0.4889]
[1763978739513,0.405504,2811.1,2809.9,0.4889]
[1763978739722,0.695004,2811.1,2809.9,0.5889]
[1763978740083,0.695004,2811.1,2810.0,0.1]
[1763978740501,0.695004,2811.1,2810.1,0.6706]
[1763978740894,0.695004,2811.1,2810.2,0.4879]
[1763978742080,0.405504,2811.3,2810.2,0.4879]
[1763978742325,0.2895,2811.2,2810.2,0.4879]
[1763978743191,0.04312047,2811.1,2810.1,0.1827]
[1763978743394,0.04312047,2811.1,2810.1,0.6706]
[1763978743597,0.33262047,2811.1,2810.1,0.1827]
[1763978744134,0.0029,2810.0,2809.6,0.001]
[1763978744428,6.65290178,2810.3,2809.6,0.001]
[1763978744429,0.630404,2809.7,2809.6,0.001]
[1763978744791,1.75773384,2809.7,2809.6,0.001]
[1763978745594,1.75773384,2809.7,2808.2,0.1827]
[1763978745595,0.405504,2809.6,2808.2,0.1827]
[1763978745827,1.31249664,2809.3,2807.9,0.001]
[1763978746039,1.02353984,2809.2,2808.0,0.6959]
[1763978746242,1.31283984,2809.2,2808.0,0.6959]
[1763978746433,0.405504,2809.0,2808.0,0.6959]
[1763978746938,0.694804,2809.0,2808.0,0.6959]
[1763978747144,0.2893,2808.9,2808.0,0.1979]
[1763978747438,0.2885,2808.9,2808.0,0.6969]
[1763978747643,0.515004,2808.1,2808.0,0.001]
[1763978748747,0.227,2808.1,2808.0,0.001]
[1763978749109,0.5155,2808.1,2808.0,0.001]
[1763978749526,0.6242,2808.1,2808.0,0.001]
[1763978750509,0.3972,2808.1,2808.0,0.001]
[1763978751313,0.694004,2808.1,2808.0,0.001]
[1763978754211,0.2885,2808.1,2808.0,0.001]
[1763978754416,0.227,2808.2,2808.0,0.001]
[1763978755647,0.1087,2808.6,2808.0,0.001]
[1763978755648,0.227,2808.3,2808.0,0.001]
[1763978756147,0.692204,2808.1,2808.0,0.001]
[1763978756517,0.952004,2808.1,2808.0,0.001]
[1763978758236,0.692204,2808.1,2808.0,0.001]
[1763978758441,1.179004,2808.1,2808.0,0.001]
[1763978759461,0.919204,2808.1,2808.0,0.001]
[1763978760568,1.179004,2808.1,2808.0,0.001]
[1763978760926,0.919204,2808.1,2808.0,0.001]
[1763978762190,0.632504,2808.1,2808.0,0.001]
[1763978762684,0.2598,2808.6,2808.0,0.001]
[1763978762863,0.632504,2808.5,2808.0,0.001]
[1763978763069,0.47473225,2808.9,2808.0,0.001]
[1763978763245,0.47473225,2808.9,2808.1,0.1876]
[1763978763246,0.227,2808.8,2808.1,0.1876]
[1763978763574,0.2885,2808.9,2808.1,0.1876]
[1763978763875,0.227,2808.7,2808.0,0.001]
[1763978764063,0.405504,2808.5,2808.0,0.001]
[1763978764266,0.405504,2808.5,2808.0,0.499]
[1763978764450,0.2885,2808.8,2808.1,0.1876]
[1763978764658,0.227,2808.7,2808.1,0.1876]
[1763978764881,0.04312047,2808.6,2808.1,0.1876]
[1763978765204,0.04312047,2808.6,2808.0,0.499]
[1763978765205,0.2885,2808.2,2808.0,0.001]
[1763978765381,0.405504,2808.5,2808.0,0.001]
[1763978765876,0.227,2808.7,2808.1,0.1876]
[1763978766284,0.696004,2808.9,2808.1,0.1876]
[1763978766603,0.227,2808.8,2808.1,0.1876]
[1763978767104,0.5155,2808.8,2808.1,0.1876]
[1763978767511,0.2885,2808.2,2808.0,0.001]
[1763978767694,0.70672447,2808.7,2808.0,0.001]
[1763978767894,0.405504,2808.5,2808.0,0.001]
[1763978768297,0.2581,2808.1,2808.0,0.001]
[1763978768519,0.663604,2808.1,2808.0,0.001]
[1763978768683,0.951804,2808.1,2808.0,0.001]
[1763978769279,0.663604,2808.1,2808.0,0.001]
[1763978770971,0.662804,2808.1,2808.0,0.001]
[1763978771203,0.950504,2808.1,2808.0,0.001]
[1763978773396,0.662804,2808.1,2808.0,0.001]
[1763978774102,0.70592447,2808.1,2808.0,0.001]
[1763978774305,0.662804,2808.1,2808.0,0.001]
[1763978774482,0.99625944,2808.1,2808.0,0.001]
[1763978778610,0.73895944,2808.1,2808.0,0.4633]
[1763978778922,1.22325944,2808.1,2808.0,0.001]
[1763978783840,1.26637991,2808.1,2808.0,0.001]
[1763978784624,1.22525944,2808.1,2808.0,0.001]
[1763978784942,1.26837991,2808.1,2808.0,0.001]
[1763978785844,1.51265944,2808.1,2808.0,0.001]
[1763978786142,1.22525944,2808.1,2808.0,0.001]
[1763978787224,0.891804,2808.1,2808.0,0.001]
[1763978787445,1.22584595,2808.1,2808.0,0.001]
[1763978788757,0.74154595,2808.1,2808.0,0.001]
[1763978788956,1.25624595,2808.1,2808.0,0.001]
[1763978792958,0.74154595,2808.1,2808.0,0.4633]
[1763978793147,0.56304195,2808.1,2808.0,0.9354]
[1763978793471,0.002,2808.1,2808.0,0.9354]
[1763978793657,0.229,2808.1,2808.0,0.9354]
[1763978794872,0.2282,2808.1,2808.0,0.9354]
[1763978795079,0.2282,2808.1,2808.0,0.4633]
[1763978795464,0.891004,2808.1,2808.0,0.001]
[1763978795665,0.93412447,2808.1,2808.0,0.001]
[1763978795968,1.22509479,2808.1,2808.0,0.001]
[1763978797548,1.51249479,2808.1,2808.0,0.001]
[1763978797884,2.28296116,2808.1,2808.0,0.001]
[1763978798180,3.41824992,2808.1,2808.0,0.001]
[1763978799238,2.64778355,2808.1,2808.0,0.001]
[1763978800381,2.64801154,2808.1,2808.0,0.001]
[1763978801243,2.36061154,2808.1,2808.0,0.001]
[1763978801682,4.03989428,2808.1,2808.0,0.001]
[1763978802059,3.7055755,2808.1,2808.0,0.001]
[1763978802259,15.21893947,2808.1,2808.0,0.001]
[1763978802473,13.889019,2808.1,2808.0,0.001]
[1763978802780,14.85111058,2808.1,2808.0,0.001]
[1763978805383,13.889019,2808.1,2808.0,0.001]
[1763978806093,14.35070443,2808.1,2808.0,0.001]
[1763978806285,11.27932343,2808.1,2808.0,0.001]
[1763978806581,14.15050443,2808.1,2808.0,0.001]
[1763978807153,22.18003343,2808.1,2808.0,0.001]
[1763978807480,23.14212501,2808.1,2808.0,0.001]
[1763978807685,22.18003343,2808.1,2808.0,0.001]
[1763978807980,11.61284586,2808.1,2808.0,0.001]
[1763978808151,3.81209793,2808.1,2808.0,0.001]
[1763978808351,3.41730234,2808.1,2808.0,0.001]
[1763978808551,4.03909793,2808.1,2808.0,0.001]
[1763978809583,4.50078336,2808.1,2808.0,0.001]
[1763978810300,3.52469793,2808.1,2808.0,0.001]
[1763978810492,3.75169793,2808.1,2808.0,0.001]
[1763978811500,3.74975583,2808.1,2808.0,0.001]
[1763978811916,0.33472243,2808.1,2808.0,0.9847]
[1763978812073,0.2282,2808.1,2808.0,0.9847]
[1763978812272,0.633704,2808.1,2808.0,0.9847]
[1763978812624,0.891004,2808.1,2808.0,0.001]
[1763978812771,0.74006969,2808.1,2808.0,0.001]
[1763978812971,0.74006969,2808.1,2808.0,0.4873]
[1763978813297,0.96706969,2808.1,2808.0,0.9847]
[1763978814299,0.96706969,2808.1,2808.0,0.001]
[1763978815080,1.25476969,2808.1,2808.0,0.001]
[1763978815703,1.29789016,2808.1,2808.0,0.001]
[1763978816500,1.25476969,2808.1,2808.0,0.001]
[1763978816996,0.96706969,2808.1,2808.0,0.001]
[1763978817405,0.74006969,2808.1,2808.0,0.4873]
[1763978817600,0.891804,2808.1,2808.0,0.001]
[1763978817912,1.22516969,2808.1,2808.0,0.001]
[1763978818423,0.96706969,2808.1,2808.0,0.4873]
[1763978818635,0.96626969,2808.1,2808.0,0.4873]
[1763978819111,0.96626969,2808.1,2808.0,0.9847]
[1763978819710,0.56076569,2808.1,2808.0,0.9847]
[1763978819910,0.2274,2808.1,2808.0,0.9847]
[1763978820400,0.632904,2808.1,2808.0,0.9847]
[1763978820577,0.96626969,2808.1,2808.0,0.9847]
[1763978820772,0.73926969,2808.1,2808.0,0.9847]
[1763978821011,0.2274,2808.1,2808.0,0.9847]
[1763978822899,0.0004,2808.1,2808.0,0.9847]
[1763978826127,0.0004,2808.1,2808.0,0.001]
[1763978826128,0.664004,2808.1,2808.0,0.001]
[1763978827329,0.9975242,2808.1,2808.0,0.001]
[1763978828245,2.05345733,2808.1,2808.0,0.001]
[1763978828410,3.19280775,2808.1,2808.0,0.001]
[1763978830703,10.23248877,2808.1,2808.0,0.001]
[1763978830936,9.27230746,2808.1,2808.0,0.001]
[1763978831097,26.3080455,2808.0,2807.9,0.001]
[1763978831298,11.810597,2807.8,2807.7,0.001]
[1763978831532,13.226427,2807.6,2807.4,0.001]
[1763978831733,13.37409164,2807.5,2807.4,0.001]
[1763978831954,21.22744203,2807.5,2807.4,0.001]
[1763978832109,15.86151146,2807.5,2807.4,0.001]
[1763978832303,16.21886288,2807.5,2807.4,0.001]
[1763978832818,17.31029588,2807.5,2807.4,0.001]
[1763978833306,15.42018388,2807.5,2807.4,0.001]
[1763978833506,15.42018388,2807.5,2806.4,0.001]
[1763978833507,1.31249664,2807.3,2806.4,0.001]
[1763978833761,0.0051,2806.5,2806.4,0.001]
[1763978834048,0.637604,2806.5,2806.4,0.001]
[1763978834416,0.632504,2806.5,2806.4,0.9784]
[1763978834844,0.892104,2806.5,2806.4,0.001]
[1763978835453,1.22505401,2806.5,2806.4,0.001]
[1763978835618,1.51255401,2806.5,2806.4,0.001]
[1763978836447,1.179604,2806.5,2806.4,0.001]
[1763978836936,0.892104,2806.5,2806.4,0.001]
[1763978837294,1.179604,2806.5,2806.4,0.001]
[1763978837596,2.45171724,2806.5,2806.4,0.001]
[1763978837884,2.46749151,2806.5,2806.4,0.001]
[1763978838037,2.13496763,2806.5,2806.4,0.001]
[1763978838240,1.64836763,2806.5,2806.4,0.4945]
[1763978838438,0.227,2806.5,2806.4,0.9784]
[1763978840038,1.179604,2806.5,2806.4,0.001]
[1763978840238,1.22272447,2806.5,2806.4,0.001]
[1763978841069,1.55484415,2806.5,2806.4,0.001]
[1763978841377,1.80102783,2806.5,2806.4,0.001]
[1763978841851,15.51385181,2806.5,2806.4,0.001]
[1763978842036,15.51385181,2806.5,2806.1,0.001]
[1763978842037,25.041318,2806.3,2806.1,0.001]
[1763978842237,15.56353111,2806.5,2805.4,0.001]
[1763978842238,1.31429664,2806.0,2805.4,0.001]
[1763978842463,0.3517,2805.7,2805.4,0.001]
[1763978842989,12.14244014,2805.7,2805.4,0.001]
[1763978844055,21.14021714,2805.7,2805.4,0.001]
[1763978844241,17.53457714,2805.7,2805.4,0.001]
[1763978844440,16.61879414,2805.7,2805.4,0.001]
[1763978844689,18.3214036,2805.7,2805.4,0.001]
[1763978844980,18.8754036,2805.7,2805.4,0.001]
[1763978845278,20.9154576,2805.7,2805.4,0.001]
[1763978845578,20.61489264,2805.5,2805.4,0.001]
[1763978845739,9.34160474,2805.5,2805.4,0.001]
[1763978846075,9.29823855,2805.5,2805.4,0.001]
[1763978846262,8.51412755,2805.5,2805.4,0.001]
[1763978846468,7.51412755,2805.5,2805.4,0.001]
[1763978847257,11.16601655,2805.5,2805.4,0.001]
[1763978847652,11.65321415,2805.5,2805.4,0.001]
[1763978847858,11.9839084,2805.5,2805.4,0.001]
[1763978848181,11.65321415,2805.5,2805.4,0.001]
[1763978848475,5.84891255,2805.5,2805.4,0.001]
[1763978848641,5.89203302,2805.5,2805.4,0.001]
[1763978849099,3.24697802,2805.5,2805.4,0.001]
[1763978849309,4.58672611,2805.5,2805.4,0.001]
[1763978849609,4.87442611,2805.5,2805.4,0.001]
[1763978849820,1.87541711,2805.5,2805.4,0.001]
[1763978850312,4.26242611,2805.5,2805.4,0.001]
[1763978850813,1.36071711,2805.5,2805.4,0.001]
[1763978850980,1.7637306,2805.5,2805.4,0.4945]
[1763978851312,0.227,2805.5,2805.4,0.9784]
[1763978852016,0.227,2805.5,2805.4,0.4945]
[1763978852618,13.4320625,2806.2,2805.4,0.4945]
[1763978852619,13.4320625,2806.2,2805.4,0.9784]
[1763978852802,0.27012047,2806.1,2805.4,0.9784]
[1763978853001,1.3702183,2806.0,2805.5,0.4839]
[1763978853206,0.405504,2805.9,2805.5,0.4839]
[1763978853607,0.405504,2805.9,2805.8,0.4935]
[1763978853779,0.632504,2805.9,2805.8,0.4935]
[1763978853978,0.632504,2805.9,2805.4,0.001]
[1763978853979,0.93522447,2805.9,2805.4,0.001]
[1763978854290,0.405504,2805.7,2805.4,0.001]
[1763978854505,0.405504,2805.5,2805.4,0.001]
[1763978854691,0.632504,2805.5,2805.4,0.001]
[1763978854896,0.632504,2805.5,2805.4,0.9784]
[1763978855219,0.632504,2805.5,2805.4,0.4945]
[1763978856734,0.632504,2805.5,2805.4,0.9784]
[1763978857987,0.632504,2805.5,2805.4,0.4945]
[1763978858192,0.632504,2805.5,2805.4,0.9914]
[1763978858625,0.405504,2805.5,2805.4,0.9914]
[1763978858821,0.227,2805.5,2805.4,0.9914]
[1763978859029,0.405504,2805.7,2805.4,0.9914]
[1763978859233,0.227,2805.5,2805.4,0.001]
[1763978859740,0.227,2805.5,2805.4,0.9813]
[1763978859907,0.90699264,2806.1,2805.4,0.9813]
[1763978860106,0.227,2806.0,2805.5,0.4969]
[1763978860349,0.72269926,2806.1,2805.5,0.4969]
[1763978860490,6.67822571,2806.7,2806.0,0.4834]
[1763978860696,7.63249664,2806.2,2806.1,0.6638]
[1763978860909,7.45399264,2806.2,2806.1,1.1607]
[1763978861213,8.19208847,2806.2,2806.1,1.1607]
[1763978861636,9.01129732,2806.2,2806.1,0.6638]
[1763978862024,1.31249664,2806.1,2805.8,0.4969]
[1763978862234,1.31249664,2806.1,2805.4,0.001]
[1763978862235,0.405504,2805.7,2805.4,0.001]
[1763978862396,0.405504,2805.5,2805.4,0.001]
[1763978862609,1.06911662,2805.5,2805.1,0.001]
[1763978862925,0.0026,2805.2,2805.1,0.001]
[1763978863252,1.28127953,2805.2,2805.1,0.001]
[1763978863414,1.56897953,2805.2,2805.1,0.001]
[1763978863614,1.23815906,2805.2,2805.1,0.001]
[1763978863833,1.28127953,2805.2,2805.1,0.001]
[1763978864018,1.56897953,2805.2,2805.1,0.001]
[1763978865139,2.33640165,2805.2,2805.1,0.001]
[1763978866155,2.33560165,2805.2,2805.1,0.001]
[1763978866441,7.99072235,2805.1,2805.0,0.001]
[1763978866639,9.86849679,2805.1,2805.0,0.001]
[1763978866807,9.86849679,2805.1,2804.5,0.001]
[1763978867002,0.409904,2804.9,2804.5,0.001]
[1763978867347,1.51011827,2804.9,2804.5,0.001]
[1763978867524,3.66990264,2804.9,2804.5,0.001]
[1763978867729,3.61000264,2804.9,2804.5,0.001]
[1763978867934,3.89690264,2804.9,2804.5,0.001]
[1763978868510,8.24522235,2804.6,2804.5,0.001]
[1763978868714,9.60756947,2804.6,2804.5,0.001]
[1763978869240,9.60756947,2804.6,2804.5,0.9813]
[1763978869241,2.90184376,2804.6,2804.5,0.9813]
[1763978869449,2.15918879,2804.6,2804.5,0.001]
[1763978869656,1.91540926,2804.6,2804.5,0.001]
[1763978869810,2.17420926,2804.6,2804.5,0.001]
[1763978870378,1.91540926,2804.6,2804.5,0.456]
[1763978870581,1.91540926,2804.6,2804.5,0.001]
[1763978870742,2.77477276,2804.6,2804.5,0.001]
[1763978871240,3.80159825,2804.6,2804.5,0.001]
[1763978871460,3.80189825,2804.6,2804.5,0.001]
[1763978873678,3.03387276,2804.6,2804.5,0.001]
[1763978873970,3.80157344,2804.6,2804.5,0.001]
[1763978875442,3.03387276,2804.6,2804.5,0.001]
[1763978877460,2.70108061,2804.6,2804.5,0.001]
[1763978877985,2.65796014,2804.6,2804.5,0.001]
[1763978878178,2.70108061,2804.6,2804.5,0.001]
[1763978878491,2.65846014,2804.6,2804.5,0.001]
[1763978878653,2.70158061,2804.6,2804.5,0.001]
[1763978878854,2.44198061,2804.6,2804.5,0.001]
[1763978879084,2.39886014,2804.6,2804.5,0.001]
[1763978879991,2.70158061,2804.6,2804.5,0.001]
[1763978881271,2.65846014,2804.6,2804.5,0.001]
[1763978881882,9.12503861,2804.6,2804.5,0.001]
[1763978882162,3.4252849,2804.6,2804.5,0.001]
[1763978882480,3.4252849,2804.6,2803.8,0.1804]
[1763978882481,1.60209664,2804.5,2803.8,0.1804]
[1763978882680,1.31249664,2804.0,2803.8,0.6368]
[1763978882865,1.31249664,2804.0,2803.9,0.9114]
[1763978883067,1.53949664,2804.0,2803.9,0.455]
[1763978883389,1.53949664,2804.0,2803.8,0.1804]
[1763978883857,1.53949664,2804.0,2803.9,0.455]
[1763978884062,0.227,2804.0,2803.9,0.9114]
[1763978884459,0.405504,2804.3,2803.9,0.9114]
[1763978884661,0.455,2804.8,2803.8,0.1804]
[1763978884662,1.36199264,2804.8,2804.2,0.455]
[1763978884887,0.99368511,2804.7,2804.3,0.455]
[1763978885070,0.64107177,2804.6,2804.3,0.455]
[1763978885277,0.64107177,2804.6,2804.4,0.4564]
[1763978885464,0.64107177,2804.6,2804.5,0.455]
[1763978885465,0.23556777,2804.6,2804.5,0.455]
[1763978885695,0.227,2804.6,2804.5,0.455]
[1763978885868,0.227,2804.6,2804.5,0.9114]
[1763978886890,0.96589173,2804.9,2804.5,0.9114]
[1763978887102,7.63876099,2805.5,2804.8,0.4921]
[1763978887308,0.405504,2805.3,2804.9,0.4859]
[1763978887597,1.1723691,2805.3,2804.9,0.4859]
[1763978888412,1.31249664,2805.0,2804.9,0.4859]
[1763978888572,2.02104779,2805.0,2804.7,0.4859]
[1763978888766,2.42655179,2805.0,2804.9,0.4921]
[1763978889595,2.75956059,2805.0,2804.9,0.4921]
[1763978889817,2.75876059,2805.0,2804.9,0.4921]
[1763978891497,3.52784024,2805.0,2804.9,0.4921]
[1763978891678,3.52784024,2805.0,2804.5,0.4859]
[1763978891679,0.405504,2804.9,2804.5,0.4859]
[1763978891875,0.42459449,2804.8,2804.5,0.4859]
[1763978892081,0.75760329,2804.8,2804.5,0.4859]
[1763978892282,1.16310729,2804.8,2804.7,0.4921]
[1763978892599,1.11998682,2804.8,2804.7,0.4921]
[1763978892825,1.11998682,2804.8,2804.7,0.978]
[1763978893406,1.11998682,2804.8,2804.7,0.4921]
[1763978894232,1.11998682,2804.8,2804.7,0.978]
[1763978894730,0.7385128,2804.8,2804.7,0.978]
[1763978894893,0.002,2805.1,2804.7,0.978]
[1763978895097,0.002,2805.1,2805.0,0.4921]
[1763978895298,0.229,2805.1,2805.0,0.978]
[1763978895648,0.634504,2805.1,2805.0,0.4921]
[1763978895995,0.634504,2805.1,2805.0,0.978]
[1763978897500,0.634504,2805.1,2805.0,0.4921]
[1763978899030,0.634504,2805.1,2805.0,0.978]
[1763978899340,0.405504,2805.0,2804.7,0.4859]
[1763978899831,0.634504,2805.1,2804.9,0.4921]
[1763978900033,0.405504,2805.0,2803.8,0.1814]
[1763978900194,0.405504,2805.0,2804.3,0.4859]
[1763978900402,0.405504,2805.0,2804.9,0.4921]
[1763978900600,0.405504,2805.0,2804.3,0.4859]
[1763978900801,0.04312047,2804.9,2804.3,0.4859]
[1763978901338,0.405504,2804.8,2804.3,0.4859]
[1763978901538,0.405504,2804.8,2804.1,0.4859]
[1763978901539,6.67822571,2804.5,2804.1,0.4859]
[1763978901741,0.405504,2804.3,2804.1,0.4859]
[1763978902039,0.93968502,2804.7,2804.1,0.4859]
[1763978902040,0.71268502,2804.7,2804.1,0.4859]
[1763978902245,0.632504,2804.6,2804.1,0.4859]
[1763978902843,0.632504,2804.6,2804.5,0.4921]
[1763978903537,0.632504,2804.6,2804.5,0.978]
[1763978903721,0.632504,2804.6,2804.5,0.4921]
[1763978903947,1.49739671,2804.6,2804.2,0.4859]
[1763978904117,1.77549671,2804.6,2803.8,0.6673]
[1763978904507,1.77549671,2804.6,2803.9,0.4859]
[1763978905013,1.49739671,2804.6,2804.5,0.4921]
[1763978905219,1.45427624,2804.6,2804.5,0.4921]
[1763978905419,1.45427624,2804.6,2804.1,0.4859]
[1763978906243,0.405504,2804.4,2804.1,0.4859]
[1763978906642,0.405504,2804.4,2804.3,0.4921]
[1763978907021,0.405504,2804.4,2804.3,0.978]
[1763978907930,0.405504,2804.4,2804.3,0.4921]
[1763978908130,0.405504,2804.4,2804.3,0.978]
[1763978910267,0.405504,2804.4,2804.3,0.4921]
[1763978911167,0.44862447,2804.4,2804.3,0.4921]
[1763978911567,0.405504,2804.4,2804.3,0.4921]
[1763978911769,0.44862447,2804.4,2804.3,0.4921]
[1763978912264,0.405504,2804.4,2804.3,0.4921]
[1763978912566,0.405504,2804.4,2804.3,0.978]
[1763978912773,0.405504,2804.5,2804.3,0.978]
[1763978912937,0.405504,2804.5,2804.4,0.4921]
[1763978913138,0.405504,2804.5,2804.4,0.978]
[1763978913650,0.738784,2804.5,2804.4,0.978]
[1763978916076,0.4509,2805.2,2804.4,0.978]
[1763978916077,0.90899264,2805.0,2804.4,0.978]
[1763978916382,0.002,2805.4,2805.2,0.6771]
[1763978916673,0.002,2805.4,2805.3,0.4921]
[1763978916876,0.002,2805.4,2805.3,0.9438]
[1763978917272,0.229,2805.4,2805.3,0.9438]
[1763978917451,0.75762047,2805.4,2804.9,0.6488]
[1763978917779,0.405504,2805.2,2803.9,0.4517]
[1763978917986,0.75503297,2805.1,2803.9,0.4517]
[1763978918286,0.405504,2804.9,2803.9,0.44530726]
[1763978918639,0.44862447,2804.9,2803.9,0.44530726]
[1763978920450,0.405504,2804.9,2803.9,0.44530726]
[1763978920654,0.04312047,2804.8,2803.9,0.44530726]
[1763978920843,0.405504,2804.7,2803.9,0.44530726]
[1763978921042,0.227,2804.6,2803.9,0.44530726]
[1763978921365,0.04312047,2804.5,2803.9,0.44530726]
[1763978921750,0.04312047,2804.5,2804.4,0.4609]
[1763978922250,0.27012047,2804.6,2804.4,0.9126]
[1763978922449,0.27012047,2804.6,2804.5,0.4609]
[1763978922649,0.27012047,2804.6,2804.5,0.9126]
[1763978923177,0.227,2804.6,2804.5,0.9126]
[1763978925204,0.227,2804.6,2803.9,0.001]
[1763978925205,1.16112447,2804.6,2803.9,0.001]
[1763978925485,0.405504,2804.5,2803.9,0.001]
[1763978925779,0.405504,2804.3,2803.9,0.001]
[1763978926144,0.405504,2804.5,2804.2,0.4609]
[1763978928075,0.739474,2804.5,2804.2,0.4609]
[1763978929576,0.739474,2804.5,2803.9,0.4527]
[1763978929577,0.739474,2804.5,2804.4,0.472]
[1763978929786,0.632504,2804.5,2804.4,0.472]
[1763978929991,0.966474,2804.5,2804.4,0.472]
[1763978931072,0.33397,2804.5,2804.4,0.926]
[1763978931245,0.227,2804.6,2804.4,0.926]
[1763978931447,0.227,2804.6,2804.5,0.454]
[1763978931646,0.227,2804.6,2804.5,0.926]
[1763978932206,0.33397,2804.7,2804.5,0.926]
[1763978932380,1.09001425,2805.9,2805.8,0.472]
[1763978932546,0.002,2806.2,2805.8,0.926]
[1763978932747,0.002,2806.2,2805.8,0.454]
[1763978932981,0.002,2806.2,2805.6,0.454]
[1763978932982,0.227,2806.1,2805.6,0.454]
[1763978933696,0.002,2806.2,2806.0,0.472]
[1763978933856,0.002,2806.2,2806.1,0.472]
[1763978934057,0.229,2806.2,2806.1,0.6664]
[1763978934988,0.229,2806.2,2806.1,1.1204]
[1763978935172,0.002,2806.2,2806.1,1.1204]
[1763978937385,0.0012,2806.2,2806.1,1.1204]
[1763978941551,0.4687,2806.2,2805.2,0.6484]
[1763978941753,0.1801,2805.3,2804.4,0.001]
[1763978941985,0.632504,2805.2,2804.5,0.454]
[1763978942891,0.405504,2805.2,2804.5,0.454]
[1763978943055,0.227,2805.1,2804.5,0.454]
[1763978943666,0.227,2805.1,2805.0,0.472]
[1763978944068,0.227,2805.1,2805.0,0.926]
[1763978946286,0.6412,2806.1,2805.0,0.926]